bitfinex-derivatives/quotes_ETHF0:USTF0_20241231
["timestamp","ask_amount","ask_price","bid_price","bid_amount"]
[1735628538114,2.25625934,3358.2,3357.6,3.2078]
[1735628538310,0.29822,3357.7,3357.6,3.2078]
[1735628539709,5.0,3357.7,3356.8,0.8524]
[1735628539900,0.29829,3356.9,3356.8,0.8524]
[1735628540309,3.95346,3357.3,3356.8,0.8524]
[1735628540310,3.2078,3357.3,3356.8,0.8524]
[1735628540516,0.29829,3356.9,3356.8,1.15069]
[1735628542615,0.29828,3357.1,3357.0,0.29827]
[1735628542814,0.29826,3357.4,3357.3,0.29825]
[1735628543013,0.29824,3357.5,3357.4,0.73674]
[1735628543217,0.29824,3357.5,3357.4,1.18614]
[1735628543814,0.00180941,3357.6,3357.5,0.29824]
[1735628544204,0.29824,3357.5,3357.4,1.18614]
[1735628544813,0.30003941,3357.6,3357.5,0.29824]
[1735628545014,0.00180941,3357.6,3357.5,0.29824]
[1735628547218,0.29821,3357.8,3357.7,0.29822]
[1735628547812,0.29821,3357.9,3357.8,0.29819]
[1735628548412,3.2078,3358.1,3358.0,0.29819]
[1735628549619,3.50598,3358.1,3358.0,0.29819]
[1735628551319,3.2078,3358.1,3358.0,0.29819]
[1735628551622,3.2078,3359.1,3358.0,3.2078]
[1735628551819,0.29813,3358.8,3358.7,0.29812]
[1735628552815,0.29812,3358.9,3358.8,0.29811]
[1735628553419,7.01658639,3359.5,3358.8,3.2078]
[1735628553613,23.20823216,3359.9,3359.2,3.2078]
[1735628553614,3.35110436,3359.9,3359.2,3.2078]
[1735628553812,0.29805,3359.7,3359.6,0.29804]
[1735628555123,0.29804,3359.8,3359.7,0.29804]
[1735628555323,0.29805,3359.7,3359.6,0.29804]
[1735628555623,0.29804,3359.8,3359.7,0.29804]
[1735628556723,0.29805,3359.7,3359.6,0.29804]
[1735628556927,3.00124934,3360.3,3359.4,0.4199]
[1735628557126,3.2078,3360.4,3359.6,3.2078]
[1735628557314,0.29801,3360.1,3360.0,0.29801]
[1735628557623,0.298,3360.2,3360.1,0.298]
[1735628557819,0.29801,3360.1,3360.0,44.30581]
[1735628558220,0.29799,3360.3,3360.2,0.29799]
[1735628559815,0.298,3360.2,3360.1,1.159]
[1735628560327,0.298,3360.2,3360.1,1.15901]
[1735628560719,0.29799,3360.3,3360.2,0.29799]
[1735628561727,0.298,3360.2,3360.1,1.159]
[1735628562030,0.298,3360.3,3360.2,0.29799]
[1735628562620,0.298,3360.2,3360.1,1.159]
[1735628564030,0.74489,3360.7,3360.1,0.861]
[1735628564530,0.298,3360.2,3360.1,1.159]
[1735628564724,3.2078,3360.8,3360.1,0.861]
[1735628564925,0.29799,3360.4,3360.3,0.29798]
[1735628565720,0.29797,3360.5,3360.4,0.29797]
[1735628566222,0.29796,3360.7,3360.6,0.29796]
[1735628566425,3.2078,3360.8,3360.3,2.25625934]
[1735628566626,0.29797,3360.6,3360.5,0.29796]
[1735628569531,0.298,3360.3,3360.2,0.298]
[1735628570024,0.298,3360.3,3360.2,0.717]
[1735628570524,0.298,3360.3,3360.2,0.419]
[1735628571222,0.298,3360.3,3360.2,0.717]
[1735628572124,0.298,3360.3,3360.2,0.419]
[1735628572526,0.298,3360.3,3360.2,0.717]
[1735628572728,0.298,3360.3,3360.2,0.419]
[1735628574029,0.298,3360.3,3360.2,0.717]
[1735628577828,0.74493,3360.6,3360.1,3.2078]
[1735628578037,0.29802,3359.9,3359.8,0.8902]
[1735628579228,0.29802,3359.9,3359.8,0.4444]
[1735628579636,0.4591,3360.2,3359.3,3.2078]
[1735628579843,0.29807,3359.5,3359.4,0.29806]
[1735628581638,0.29806,3359.6,3359.5,0.29805]
[1735628583329,1.19903,3359.7,3359.3,3.664]
[1735628583638,0.29807,3359.4,3359.3,3.96208]
[1735628583937,0.29806,3359.6,3359.5,0.29805]
[1735628584136,0.29807,3359.5,3359.4,0.29806]
[1735628585135,0.29805,3359.8,3359.7,0.29803]
[1735628586031,0.29802,3360.1,3360.0,0.29801]
[1735628587242,0.29802,3360.0,3359.9,0.74472]
[1735628588034,0.29801,3360.1,3360.0,0.29801]
[1735628590139,0.298,3360.3,3360.2,0.29799]
[1735628591635,0.29799,3360.4,3360.3,0.29798]
[1735628597043,3.9527,3360.7,3360.2,0.29799]
[1735628597044,0.298,3360.3,3360.2,0.29799]
[1735628597247,0.74494,3360.5,3360.1,3.2078]
[1735628597445,0.298,3360.2,3360.1,3.2078]
[1735628598638,5.91535934,3360.3,3360.0,4.68506424]
[1735628598947,5.91535934,3360.3,3359.9,4.68506424]
[1735628599141,0.29802,3360.0,3359.9,4.68506424]
[1735628600346,0.29802,3359.9,3359.8,41.54973]
[1735628601350,0.29802,3359.9,3359.8,45.93676424]
[1735628601545,0.29802,3359.9,3359.8,46.23479424]
[1735628602046,0.29802,3359.9,3359.8,41.54973]
[1735628602452,0.29802,3360.1,3360.0,0.298]
[1735628602956,0.29802,3360.0,3359.9,0.72552]
[1735628603357,0.29802,3360.0,3359.9,5.41058424]
[1735628604357,0.29802,3360.0,3359.9,0.72552]
[1735628605157,0.4513,3360.3,3359.9,0.4275]
[1735628605350,0.29801,3360.2,3360.1,0.298]
[1735628605749,0.4513,3360.3,3359.9,5.11256424]
[1735628606056,0.29802,3360.1,3360.0,0.29801]
[1735628607752,0.29802,3360.0,3359.9,4.68506424]
[1735628608057,0.2523,3360.0,3359.6,7.89286424]
[1735628608262,0.29804,3359.7,3359.6,7.89286424]
[1735628608954,0.29804,3359.7,3359.6,8.19091424]
[1735628609254,0.74507,3359.9,3359.6,8.19091424]
[1735628609255,0.29804,3359.9,3359.8,0.29802]
[1735628609867,0.29803,3360.0,3359.9,0.29801]
[1735628610058,0.29802,3360.1,3360.0,0.29801]
[1735628610957,0.74495,3360.5,3359.8,0.4255]
[1735628611159,0.298,3360.3,3360.2,0.29798]
[1735628611363,0.298,3360.3,3360.2,41.09798]
[1735628612263,0.298,3360.3,3360.2,0.29798]
[1735628613268,0.7448,3361.1,3360.2,0.745]
[1735628613566,0.29796,3360.8,3360.7,0.29794]
[1735628614161,1.1776,3361.1,3360.5,41.09797]
[1735628614162,0.29796,3360.6,3360.5,41.09797]
[1735628614369,0.29796,3360.8,3360.7,0.29794]
[1735628619773,3.95258,3361.2,3360.5,45.48506424]
[1735628619965,0.29794,3361.0,3360.9,0.29793]
[1735628620360,3.2078,3361.2,3360.6,3.00116934]
[1735628620568,0.29794,3361.1,3361.0,0.29792]
[1735628621871,3.2078,3361.2,3360.6,6.94132358]
[1735628622174,0.29795,3360.9,3360.8,0.29793]
[1735628623575,3.2078,3361.2,3360.5,45.48506424]
[1735628623769,0.29796,3360.7,3360.6,0.29795]
[1735628624476,3.2078,3361.2,3360.5,45.48506424]
[1735628624678,0.29795,3360.9,3360.8,0.29793]
[1735628624867,3.2078,3361.2,3360.5,46.22998424]
[1735628625072,0.29794,3361.0,3360.9,0.29792]
[1735628625370,3.2078,3361.2,3360.8,0.74486]
[1735628625580,3.50571,3361.2,3361.1,0.29792]
[1735628626775,3.2078,3361.2,3361.1,0.29792]
[1735628627374,0.7447,3361.6,3361.4,0.29788]
[1735628627375,0.29789,3361.5,3361.4,0.29788]
[1735628627672,0.29789,3361.5,3361.4,41.09788]
[1735628630380,0.29789,3361.5,3361.4,0.29788]
[1735628632182,0.29789,3361.5,3361.3,0.4411]
[1735628632183,0.29789,3361.4,3361.3,0.739]
[1735628632382,0.72299,3361.4,3361.3,0.739]
[1735628633083,0.72299,3361.4,3361.3,0.4411]
[1735628633381,0.72299,3361.4,3361.3,0.739]
[1735628640187,0.72299,3361.4,3361.3,0.4411]
[1735628640687,0.72299,3361.4,3361.0,3.2078]
[1735628640688,0.29792,3361.1,3361.0,3.50573]
[1735628640882,0.29792,3361.1,3361.0,0.29793]
[1735628641083,0.29792,3361.1,3361.0,41.09793]
[1735628644889,0.4251,3361.4,3361.0,40.8]
[1735628645086,0.29791,3361.3,3361.2,0.2979]
[1735628645394,0.4251,3361.4,3361.0,40.8]
[1735628645588,0.723,3361.4,3361.3,0.2979]
[1735628645789,0.4251,3361.4,3361.3,0.2979]
[1735628646085,0.72299,3361.4,3361.3,0.2979]
[1735628647795,0.29787,3361.8,3361.7,0.29786]
[1735628647993,0.2979,3361.5,3361.4,0.29788]
[1735628649294,0.4353,3361.8,3361.0,41.54482]
[1735628649495,0.29792,3361.3,3361.2,0.2979]
[1735628650895,7.01658639,3362.7,3361.3,2.25625934]
[1735628651101,7.01658639,3362.7,3362.1,0.74458]
[1735628651292,7.31436639,3362.7,3362.6,0.29779]
[1735628652098,0.29778,3362.7,3362.6,0.29779]
[1735628652293,0.4533,3362.8,3362.4,40.8]
[1735628652490,3.50556,3362.9,3362.4,41.5445]
[1735628652797,3.50556,3362.9,3362.8,0.29777]
[1735628653705,3.2078,3362.9,3362.4,40.8]
[1735628653997,0.29778,3362.8,3362.7,0.29777]
[1735628655198,0.29779,3362.7,3362.6,0.29778]
[1735628655702,0.29779,3362.6,3362.5,0.74709]
[1735628655901,3.2078,3362.9,3362.2,0.8527]
[1735628656198,0.29781,3362.4,3362.3,0.2978]
[1735628656402,0.4275,3362.5,3362.2,0.8527]
[1735628656602,0.29781,3362.3,3362.2,0.8527]
[1735628656897,0.29781,3362.3,3362.2,0.435]
[1735628658197,0.29781,3362.3,3362.2,0.73282]
[1735628660102,0.29781,3362.3,3362.2,0.435]
[1735628660402,0.29781,3362.3,3362.2,0.73282]
[1735628660701,0.29781,3362.3,3362.2,0.435]
[1735628660906,0.29781,3362.3,3362.2,0.73282]
[1735628662499,1.16313,3362.8,3362.2,0.435]
[1735628662699,0.2978,3362.5,3362.4,0.29779]
[1735628663306,0.29779,3362.6,3362.5,0.29779]
[1735628663704,0.29781,3362.5,3362.4,0.2978]
[1735628665205,1.16314,3362.8,3362.2,0.435]
[1735628665403,0.29781,3362.4,3362.3,0.2978]
[1735628666405,1.16314,3362.8,3362.2,0.435]
[1735628666601,0.29781,3362.3,3362.2,0.73282]
[1735628667210,0.29781,3362.3,3362.2,0.435]
[1735628667903,0.29781,3362.3,3362.2,0.73282]
[1735628668113,0.29781,3362.3,3362.2,0.435]
[1735628668314,0.29781,3362.3,3361.7,2.25625934]
[1735628668315,2.25625934,3362.4,3361.6,3.2078]
[1735628668610,0.29787,3361.7,3361.6,1.16297]
[1735628668911,0.29787,3361.7,3361.6,41.96297]
[1735628672415,0.29787,3361.7,3361.6,41.6651]
[1735628672604,0.29787,3361.7,3361.6,41.96297]
[1735628673012,0.29787,3361.8,3361.7,0.29785]
[1735628673202,5.46405934,3362.0,3361.6,0.8651]
[1735628673513,0.29787,3361.6,3361.5,0.4565]
[1735628673910,0.74465,3361.9,3361.4,0.8637]
[1735628674115,0.29787,3361.6,3361.5,40.8]
[1735628674512,0.73197,3361.6,3361.5,40.8]
[1735628675217,3.93977,3361.6,3361.5,40.8]
[1735628675715,4.38037,3361.6,3361.5,40.8]
[1735628676014,0.29791,3361.2,3361.1,0.74141]
[1735628676614,0.29791,3361.2,3361.1,41.54141]
[1735628678315,0.29791,3361.2,3361.1,40.8]
[1735628678812,0.29791,3361.2,3360.6,4.68506424]
[1735628678813,0.29795,3360.7,3360.6,4.68506424]
[1735628679113,0.29797,3360.5,3360.4,5.43094424]
[1735628679412,0.29797,3360.5,3360.4,46.23094424]
[1735628680209,3.00109934,3361.0,3360.4,45.93296424]
[1735628680405,0.29796,3360.8,3360.7,0.29794]
[1735628680611,2.25625934,3361.0,3360.4,41.2479]
[1735628680918,0.29796,3360.7,3360.6,0.29796]
[1735628681216,2.25625934,3361.0,3360.4,41.2479]
[1735628681405,0.29795,3360.8,3360.7,0.29794]
[1735628682009,4.37719,3361.2,3360.5,3.95274]
[1735628682010,3.2078,3361.2,3360.5,3.95274]
[1735628682211,0.29795,3360.8,3360.7,0.29794]
[1735628682611,0.29794,3361.0,3360.9,0.29793]
[1735628683318,0.29792,3361.1,3361.0,0.29792]
[1735628684919,3.2078,3361.2,3360.5,3.95274]
[1735628685121,0.29794,3361.0,3360.9,0.29793]
[1735628685828,0.29796,3360.7,3360.6,0.29795]
[1735628686019,0.29794,3360.9,3360.8,0.29793]
[1735628687825,0.29796,3360.6,3360.5,3.50577]
[1735628688027,0.29797,3360.5,3360.4,41.54587]
[1735628688731,0.74475,3361.4,3360.5,1.48988]
[1735628688935,0.29792,3361.2,3361.1,0.29791]
[1735628689437,0.29792,3361.2,3361.1,41.09791]
[1735628691139,0.29791,3361.3,3361.2,0.2979]
[1735628691527,0.2979,3361.4,3361.3,0.29789]
[1735628692536,0.29789,3361.5,3361.4,0.29788]
[1735628694130,3.2078,3361.6,3361.2,0.4437]
[1735628694339,3.2078,3361.6,3361.5,0.29788]
[1735628694536,3.50567,3361.6,3361.5,0.29788]
[1735628697439,3.2078,3361.6,3361.5,0.29788]
[1735628698538,3.50567,3361.6,3361.5,0.29788]
[1735628700243,3.50567,3361.6,3361.2,0.4437]
[1735628700244,3.2078,3361.6,3361.2,0.4437]
[1735628700540,0.2979,3361.3,3361.2,0.4437]
[1735628701543,0.2979,3361.3,3361.2,0.74161]
[1735628701741,3.2078,3361.6,3361.2,0.4437]
[1735628701942,0.2979,3361.3,3361.2,0.74161]
[1735628702439,0.2979,3361.3,3361.2,0.4437]
[1735628703243,0.29792,3361.1,3361.0,0.8725]
[1735628703952,0.29793,3361.0,3360.9,3.2078]
[1735628704250,2.25625934,3361.2,3360.5,4.0769]
[1735628704557,0.29796,3360.6,3360.5,4.37487]
[1735628704747,0.29796,3360.6,3360.5,45.17487]
[1735628706449,0.29796,3360.6,3360.5,44.8769]
[1735628706649,0.29796,3360.6,3360.5,40.8]
[1735628711851,0.29796,3360.6,3360.5,41.09797]
[1735628713055,0.29796,3360.6,3360.5,40.8]
[1735628714054,0.29799,3360.3,3360.2,0.29799]
[1735628714454,0.29799,3360.3,3360.2,40.8]
[1735628714954,0.29799,3360.3,3360.2,41.098]
[1735628715151,0.29799,3360.3,3360.2,40.8]
[1735628715352,0.74492,3360.6,3360.1,0.852]
[1735628715552,0.74492,3360.6,3360.0,0.4474]
[1735628715553,0.29801,3360.1,3360.0,0.4474]
[1735628716153,0.29801,3360.1,3360.0,0.74542]
[1735628718953,0.4271,3360.3,3360.0,0.4474]
[1735628719165,0.29799,3360.4,3360.3,0.29798]
[1735628719958,1.17661,3360.7,3360.1,0.4574]
[1735628719959,0.29798,3360.6,3360.5,0.29796]
[1735628721556,3.2078,3360.8,3360.2,1.1809]
[1735628721756,0.29796,3360.7,3360.6,0.29795]
[1735628721957,3.2078,3360.8,3360.7,0.29795]
[1735628722157,3.50574,3360.8,3360.7,41.09795]
[1735628722353,0.29794,3360.8,3360.7,41.09795]
[1735628722958,0.29794,3360.9,3360.8,0.29793]
[1735628723148,0.29794,3360.9,3360.8,0.74973]
[1735628723352,3.2078,3361.3,3360.8,0.4518]
[1735628723860,0.29793,3361.1,3361.0,0.29792]
[1735628724560,3.2078,3361.3,3360.8,0.4518]
[1735628724961,0.29792,3361.2,3361.1,0.29791]
[1735628726562,0.4231,3361.5,3360.8,0.4518]
[1735628726759,0.29794,3361.0,3360.9,0.29794]
[1735628727164,0.29794,3361.0,3360.9,3.50574]
[1735628727663,0.29792,3361.1,3361.0,0.29791]
[1735628727856,0.29792,3361.2,3361.1,0.29791]
[1735628730469,0.29791,3361.4,3361.3,0.29789]
[1735628731161,3.6647,3361.7,3360.9,7.89286424]
[1735628731464,0.29792,3361.3,3361.2,0.2979]
[1735628734669,0.7447,3361.6,3361.0,0.4278]
[1735628734966,0.29792,3361.1,3361.0,0.4278]
[1735628735158,0.29792,3361.1,3361.0,0.72573]
[1735628736762,0.29791,3361.3,3361.2,0.2979]
[1735628738765,0.29791,3361.2,3361.1,0.75601]
[1735628742370,0.29791,3361.2,3361.1,0.4581]
[1735628743566,0.29791,3361.2,3361.1,0.75602]
[1735628747873,0.29791,3361.2,3360.9,3.2078]
[1735628747874,0.29793,3361.0,3360.9,3.2078]
[1735628748674,0.29794,3360.9,3360.8,0.29794]
[1735628749470,1.19643,3361.0,3360.5,3.2078]
[1735628749672,0.29796,3360.6,3360.5,3.50577]
[1735628749976,0.29796,3360.6,3360.5,44.0078]
[1735628751377,0.29796,3360.6,3360.5,44.30577]
[1735628751676,0.29796,3360.6,3360.5,3.50577]
[1735628751874,0.29796,3360.6,3360.5,3.2078]
[1735628752771,5.46405934,3360.6,3360.0,3.2078]
[1735628753076,2.25625934,3360.2,3359.9,4.68506424]
[1735628753273,0.29802,3360.0,3359.9,4.68506424]
[1735628753478,0.29802,3359.9,3359.8,40.8]
[1735628753675,0.73882,3359.9,3359.8,40.8]
[1735628755074,0.4408,3359.9,3359.6,0.29805]
[1735628755274,0.4408,3359.9,3359.5,4.0838]
[1735628755275,0.29805,3359.6,3359.5,3.6568]
[1735628755673,0.29805,3359.6,3359.5,44.75486]
[1735628756774,0.4408,3359.9,3359.5,44.4568]
[1735628756970,0.29804,3359.8,3359.7,0.29803]
[1735628758881,6.20907934,3360.2,3359.6,3.00139934]
[1735628758882,3.2078,3360.2,3359.6,3.00139934]
[1735628759083,3.2078,3360.2,3360.1,0.29801]
[1735628759278,3.5058,3360.2,3360.1,41.09801]
[1735628761386,0.29802,3360.1,3360.0,0.29801]
[1735628761585,0.29802,3360.0,3359.9,0.29802]
[1735628761785,0.29802,3360.0,3359.9,41.09802]
[1735628762184,0.29802,3360.0,3359.9,40.8]
[1735628762488,0.29802,3359.9,3359.8,0.4343]
[1735628762887,0.29802,3359.9,3359.8,0.73233]
[1735628763880,0.29802,3359.9,3359.8,0.4343]
[1735628764085,0.29802,3359.9,3359.8,0.73233]
[1735628764296,0.29802,3359.9,3359.8,0.4343]
[1735628765187,0.29802,3359.9,3359.5,44.4568]
[1735628765188,0.29805,3359.6,3359.5,44.4568]
[1735628765388,0.29805,3359.6,3359.5,3.2078]
[1735628766688,2.55430934,3359.6,3359.5,3.2078]
[1735628773099,2.55430934,3359.6,3359.2,0.4371]
[1735628773411,0.29809,3359.2,3359.1,0.8752]
[1735628773908,0.29809,3359.2,3358.7,41.2469]
[1735628773909,3.2078,3359.2,3358.7,41.2469]
[1735628774204,0.29812,3358.8,3358.7,0.4469]
[1735628774404,0.29813,3358.7,3358.6,0.8844]
[1735628774811,0.8677,3358.8,3358.3,0.4444]
[1735628775001,0.29816,3358.4,3358.3,0.4444]
[1735628777109,0.29816,3358.5,3358.4,0.29815]
[1735628777404,0.29814,3358.6,3358.5,0.29814]
[1735628777608,5.46405934,3358.8,3358.3,0.4444]
[1735628777801,0.29816,3358.4,3358.3,0.4444]
[1735628778403,0.29816,3358.4,3358.3,0.74257]
[1735628778912,0.29816,3358.4,3358.3,0.4444]
[1735628779806,0.29816,3358.4,3358.3,0.74257]
[1735628780207,0.29816,3358.4,3358.3,0.4444]
[1735628781008,0.29816,3358.4,3358.3,0.74257]
[1735628781609,0.29816,3358.4,3358.3,0.4444]
[1735628781809,0.29816,3358.4,3358.3,0.74257]
[1735628782014,0.29816,3358.4,3358.3,0.4444]
[1735628785520,0.29816,3358.4,3358.3,0.74257]
[1735628789006,0.29816,3358.4,3358.3,0.4444]
[1735628794319,0.29817,3358.3,3358.2,0.4603]
[1735628797517,0.29817,3358.3,3358.2,0.75848]
[1735628797921,0.29817,3358.3,3358.2,0.4603]
[1735628798516,0.29817,3358.3,3358.2,0.75848]
[1735628798918,0.29816,3358.5,3358.4,0.29815]
[1735628800015,3.2078,3358.6,3358.2,0.4603]
[1735628800211,5.46405934,3359.1,3358.5,0.29815]
[1735628800412,3.2078,3359.1,3359.0,0.2981]
[1735628800616,2.25625934,3359.9,3358.7,3.2078]
[1735628800810,0.29804,3359.8,3359.7,0.29804]
[1735628801018,2.25625934,3359.9,3359.3,0.4286]
[1735628801217,0.29803,3359.8,3359.6,0.29805]
[1735628801423,7.01658639,3360.0,3359.4,41.6436]
[1735628801619,7.31460639,3360.0,3359.8,0.29803]
[1735628801821,0.29802,3360.0,3359.8,0.29803]
[1735628802425,0.74961,3360.1,3359.9,0.29802]
[1735628802627,0.29802,3360.0,3359.8,0.29803]
[1735628803022,0.29802,3360.0,3359.4,41.6436]
[1735628803223,0.29802,3360.0,3359.8,0.29803]
[1735628803626,0.29802,3360.0,3359.4,41.6436]
[1735628804027,0.29802,3360.0,3359.8,0.29803]
[1735628804229,0.4516,3360.1,3359.8,0.29803]
[1735628804428,0.29802,3359.9,3359.8,0.29803]
[1735628804819,2.25625934,3360.0,3359.6,0.29804]
[1735628805224,0.29804,3359.7,3359.6,0.29804]
[1735628805629,2.25625934,3360.0,3359.4,41.6436]
[1735628805832,0.29806,3359.5,3359.4,1.14166]
[1735628806025,0.29806,3359.5,3359.4,0.8436]
[1735628806223,0.29807,3359.4,3359.3,0.4286]
[1735628806425,0.29807,3359.4,3359.3,0.72668]
[1735628808429,2.25625934,3359.7,3359.3,0.4286]
[1735628808637,0.29807,3359.5,3359.4,0.29806]
[1735628809131,0.29807,3359.4,3359.3,0.72667]
[1735628809529,0.29807,3359.5,3359.4,0.29806]
[1735628810133,3.2078,3359.9,3359.3,0.4286]
[1735628810333,0.29805,3359.7,3359.6,0.29804]
[1735628811134,3.2078,3359.9,3359.3,0.4286]
[1735628811333,0.29807,3359.5,3359.4,0.29806]
[1735628812237,0.29807,3359.4,3359.3,0.72667]
[1735628814237,0.29804,3359.8,3359.6,0.29805]
[1735628814443,0.29804,3359.8,3359.7,0.29804]
[1735628815141,0.29806,3359.8,3359.7,0.29804]
[1735628815544,0.29808,3359.7,3359.6,0.29806]
[1735628816038,0.2981,3359.4,3359.3,0.7267]
[1735628817137,0.29811,3359.3,3359.2,3.50591]
[1735628824039,3.00152934,3359.4,3359.0,40.8]
[1735628824245,0.29816,3358.7,3358.6,3.2078]
[1735628824747,0.29816,3358.7,3358.6,44.0078]
[1735628824945,0.29816,3358.7,3358.6,44.30597]
[1735628826750,0.29814,3359.0,3358.9,0.29813]
[1735628827045,3.50593,3359.1,3359.0,0.29813]
[1735628827442,3.2078,3359.1,3359.0,41.09813]
[1735628827639,0.74401,3359.3,3359.2,0.29812]
[1735628827844,0.74401,3359.3,3359.0,40.8]
[1735628827845,0.2981,3359.5,3359.1,1.2718]
[1735628828153,0.2981,3359.5,3359.4,0.29808]
[1735628828751,0.4146,3359.7,3359.1,1.2718]
[1735628828948,0.29811,3359.4,3359.3,0.2981]
[1735628829250,0.4146,3359.7,3359.1,1.2718]
[1735628829439,0.29812,3359.3,3359.2,0.29811]
[1735628831542,0.2981,3359.5,3359.4,0.29809]
[1735628832148,0.29811,3359.4,3359.2,0.29811]
[1735628832752,3.2078,3359.9,3359.1,1.2718]
[1735628832947,0.29809,3359.6,3359.1,2.01711]
[1735628833148,5.46405934,3359.9,3359.1,1.2718]
[1735628833349,0.2981,3359.4,3359.3,0.2981]
[1735628833556,0.29809,3359.6,3359.5,0.29809]
[1735628834054,5.46405934,3359.9,3359.1,1.2718]
[1735628834253,0.29811,3359.4,3359.3,0.2981]
[1735628834447,0.2981,3359.4,3359.2,0.29812]
[1735628834750,0.2981,3359.4,3359.3,0.29811]
[1735628836445,0.2981,3359.5,3359.4,0.29809]
[1735628836645,0.29811,3359.4,3359.3,0.2981]
[1735628837556,0.2981,3359.5,3359.4,0.29809]
[1735628837953,0.29811,3359.4,3359.3,0.2981]
[1735628838554,5.46405934,3359.9,3359.1,1.2718]
[1735628838852,0.29809,3359.6,3359.5,0.29808]
[1735628839349,0.2981,3359.5,3359.1,0.8525]
[1735628839556,0.2981,3359.5,3359.4,0.29809]
[1735628841352,3.2078,3359.9,3359.1,1.59781]
[1735628841552,0.29807,3359.8,3359.7,0.29806]
[1735628841958,0.29808,3359.7,3359.6,0.29807]
[1735628842160,0.29809,3359.6,3359.5,0.29808]
[1735628845160,0.29807,3359.8,3359.7,0.29806]
[1735628852258,3.95291,3360.1,3359.4,7.89286424]
[1735628852259,0.74516,3359.9,3359.4,7.89286424]
[1735628852454,0.29809,3359.5,3359.4,8.19095424]
[1735628853965,0.29809,3359.5,3359.4,3.50589]
[1735628854568,0.29809,3359.5,3359.4,0.29809]
[1735628854766,0.29809,3359.5,3359.4,3.50589]
[1735628857969,0.29809,3359.6,3359.5,0.29807]
[1735628858161,0.29809,3359.6,3359.5,0.72497]
[1735628859971,0.29809,3359.6,3359.5,41.52497]
[1735628862065,0.29809,3359.6,3359.5,41.09807]
[1735628873683,0.2981,3359.4,3359.3,4.68506424]
[1735628873876,1.36348389,3359.4,3359.3,4.68506424]
[1735628874180,1.36348389,3359.4,3359.3,41.09811]
[1735628875789,1.36348389,3359.4,3359.3,40.8]
[1735628875976,0.29813,3359.1,3359.0,8.19653264]
[1735628876183,1.36351389,3359.1,3359.0,7.89840264]
[1735628876488,1.36351389,3359.1,3359.0,48.69840264]
[1735628877190,1.36351389,3359.1,3359.0,44.0078]
[1735628878286,0.29813,3359.1,3359.0,44.0078]
[1735628878585,0.29813,3359.1,3358.7,4.69060264]
[1735628878586,0.72613,3359.1,3358.7,4.69060264]
[1735628878790,0.29815,3358.8,3358.7,4.69060264]
[1735628879186,0.29815,3358.8,3358.7,45.49060264]
[1735628879689,0.29815,3358.8,3358.7,4.69060264]
[1735628879887,0.29815,3358.8,3358.4,0.29818]
[1735628879888,0.29819,3358.5,3358.4,0.29818]
[1735628880089,0.29819,3358.5,3358.4,40.8]
[1735628880599,2.25157979,3358.6,3358.3,4.69060264]
[1735628880600,0.29819,3358.4,3358.3,4.69060264]
[1735628880894,4.80549,3358.4,3358.3,4.69060264]
[1735628881095,4.5073,3358.4,3357.9,48.99663264]
[1735628881298,0.29822,3358.0,3357.9,48.99663264]
[1735628882395,0.29822,3358.0,3357.9,45.49060264]
[1735628882595,0.29822,3358.0,3357.9,40.8]
[1735628882992,3.50602,3358.0,3357.9,40.8]
[1735628883789,0.29828,3357.4,3357.3,3.6282]
[1735628883991,0.29828,3357.4,3357.3,3.92649]
[1735628884194,0.29828,3357.4,3357.3,44.72649]
[1735628884397,0.29828,3357.4,3357.3,44.4282]
[1735628885298,2.25157979,3357.9,3357.3,41.2204]
[1735628885498,0.29826,3357.7,3357.6,0.29825]
[1735628886001,0.29827,3357.6,3357.5,0.29826]
[1735628886295,2.25157979,3357.9,3357.3,41.2204]
[1735628886600,2.25157979,3357.6,3357.3,41.2204]
[1735628886794,0.29827,3357.5,3357.4,0.29827]
[1735628889892,0.29828,3357.4,3357.3,41.51868]
[1735628890294,2.25157979,3357.6,3357.3,41.2204]
[1735628890501,0.29828,3357.5,3357.4,0.29827]
[1735628890999,3.2078,3358.0,3357.3,44.4282]
[1735628891203,0.29821,3358.3,3358.2,0.2982]
[1735628891396,0.29819,3358.4,3358.3,0.2982]
[1735628891597,0.29818,3358.6,3358.5,0.29817]
[1735628891900,0.29817,3358.7,3358.6,0.29816]
[1735628892095,0.29816,3358.8,3358.7,0.29815]
[1735628892299,0.29816,3358.7,3358.6,1.16537]
[1735628892496,0.29815,3358.9,3358.8,0.29815]
[1735628892705,0.29814,3359.0,3358.9,0.29813]
[1735628893100,0.29814,3359.0,3358.6,0.8672]
[1735628893101,3.2078,3359.3,3358.6,0.8672]
[1735628893495,3.2078,3359.3,3358.9,0.29813]
[1735628893696,0.29814,3359.0,3358.9,0.29813]
[1735628894097,3.2078,3359.3,3358.6,0.8672]
[1735628894304,0.29815,3358.9,3358.8,0.29814]
[1735628894905,3.2078,3359.3,3358.6,0.8672]
[1735628894906,0.29814,3359.0,3358.9,0.29813]
[1735628895797,0.29815,3358.9,3358.8,0.29814]
[1735628896198,0.29814,3359.0,3358.9,0.29813]
[1735628897309,0.29815,3358.9,3358.8,0.29815]
[1735628898009,0.29814,3359.0,3358.9,0.29813]
[1735628899210,0.29815,3358.9,3358.8,0.29814]
[1735628901511,2.70677979,3359.4,3358.6,0.8672]
[1735628901512,0.29816,3358.8,3358.7,0.29815]